fUSD/lending_fUSD_20250217
["ID","MTS","AMOUNT","RATE_DAILY","PERIOD"]
[353375639,1739805033724,-500.0,0.00013698,2]
[353375640,1739805033734,-500.0,0.00013698,2]
[353375641,1739805033744,-500.0,0.00013698,2]
[353375642,1739805033755,-500.0,0.00013698,2]
[353375643,1739805033765,-631.72,0.00013698,2]
[353375644,1739805033775,-559.96,0.00013698,2]
[353375645,1739805033785,-500.0,0.00013698,2]
[353375646,1739805033795,-724.69,0.00013698,2]
[353375647,1739805033806,-500.0,0.00013698,2]
[353375648,1739805033816,-794.05,0.00013698,2]
[353375649,1739805033826,-656.72,0.00013698,2]
[353375650,1739805033836,-500.0,0.00013698,2]
[353375651,1739805033846,-500.0,0.00013698,2]
[353375652,1739805033856,-500.0,0.00013698,2]
[353375653,1739805033865,-500.0,0.00013698,2]
[353375654,1739805033875,-481.49599633,0.00013698,2]
[353375655,1739805033884,-513.17,0.00013698,2]
[353375656,1739805033894,-649.03,0.00013698,2]
[353375657,1739805033904,-500.0,0.00013698,2]
[353375658,1739805033914,-500.0,0.00013698,2]
[353375659,1739805033923,-500.0,0.00013698,2]
[353375660,1739805033933,-163.8646999,0.00013698,2]
[353375661,1739805033942,-500.0,0.00013698,2]
[353375662,1739805033951,-500.0,0.00013698,2]
[353375663,1739805033961,-500.0,0.00013698,2]
[353375664,1739805033970,-500.0,0.00013698,2]
[353375665,1739805033979,-500.0,0.00013698,2]
[353375666,1739805033990,-1146.36,0.00013698,2]
[353375667,1739805033999,-500.0,0.00013698,2]
[353375668,1739805034009,-500.0,0.00013698,2]
[353375669,1739805034018,-543.98,0.00013698,2]
[353375670,1739805034028,-500.0,0.00013698,2]
[353375671,1739805034038,-500.0,0.00013698,2]
[353375672,1739805034048,-708.18,0.00013698,2]
[353375673,1739805034057,-500.0,0.00013698,2]
[353375674,1739805034067,-679.33,0.00013698,2]
[353375675,1739805034082,-500.0,0.00013698,2]
[353375676,1739805034091,-500.0,0.00013698,2]
[353375677,1739805034101,-619.37,0.00013698,2]
[353375678,1739805034110,-694.36,0.00013698,2]
[353375679,1739805034120,-500.0,0.00013698,2]
[353375680,1739805034130,-636.71,0.00013698,2]
[353375681,1739805034140,-500.0,0.00013698,2]
[353375682,1739805034150,-500.0,0.00013698,2]
[353375683,1739805034159,-500.0,0.00013698,2]
[353375684,1739805034169,-939.46,0.00013698,2]
[353375685,1739805034179,-1098.77,0.00013698,2]
[353375686,1739805034189,-500.0,0.00013698,2]
[353375687,1739805034199,-500.0,0.00013698,2]
[353375688,1739805034209,-500.0,0.00013698,2]
[353375689,1739805034218,-1118.71,0.00013698,2]
[353375690,1739805034228,-500.0,0.00013698,2]
[353375691,1739805034237,-500.0,0.00013698,2]
[353375692,1739805034247,-500.0,0.00013698,2]
[353375693,1739805034256,-500.0,0.00013698,2]
[353375694,1739805034266,-500.0,0.00013698,2]
[353375695,1739805034278,-500.0,0.00013698,2]
[353375696,1739805034288,-1095.78,0.00013698,2]
[353375697,1739805034297,-500.0,0.00013698,2]
[353375698,1739805034307,-503.68277338,0.00013698,2]
[353375699,1739805034317,-641.62,0.00013698,2]
[353375700,1739805034327,-500.0,0.00013698,2]
[353375701,1739805034336,-500.0,0.00013698,2]
[353375702,1739805034345,-500.0,0.00013698,2]
[353375703,1739805034355,-500.0,0.00013698,2]
[353375704,1739805034364,-500.0,0.00013698,2]
[353375705,1739805034374,-500.0,0.00013698,2]
[353375706,1739805034383,-721.21,0.00013698,2]
[353375707,1739805034393,-500.0,0.00013698,2]
[353375708,1739805034402,-1085.28,0.00013698,2]
[353375709,1739805034412,-1171.27,0.00013698,2]
[353375710,1739805034422,-500.0,0.00013698,2]
[353375711,1739805034432,-500.0,0.00013698,2]
[353375712,1739805034442,-549.95583035,0.00013698,2]
[353375713,1739805034451,-1105.88,0.00013698,2]
[353375714,1739805034460,-500.0,0.00013698,2]
[353375715,1739805034470,-500.0,0.00013698,2]
[353375716,1739805034480,-223.29526872,0.00013698,2]
[353375717,1739805035030,-276.70473128,0.00013698,2]
[353375718,1739805035040,-500.0,0.00013698,2]
[353375719,1739805035049,-500.0,0.00013698,2]
[353375720,1739805035058,-862.29,0.00013698,2]
[353375721,1739805035068,-595.65,0.00013698,2]
[353375722,1739805035082,-500.0,0.00013698,2]
[353375723,1739805035091,-500.0,0.00013698,2]
[353375724,1739805035100,-542.79,0.00013698,2]
[353375725,1739805035110,-500.0,0.00013698,2]
[353375726,1739805035120,-500.0,0.00013698,2]
[353375727,1739805035129,-500.0,0.00013698,2]
[353375728,1739805035138,-500.0,0.00013698,2]
[353375729,1739805035148,-500.0,0.00013698,2]
[353375730,1739805035158,-500.0,0.00013698,2]
[353375731,1739805035168,-697.62,0.00013698,2]
[353375732,1739805035177,-502.32439419,0.00013698,2]
[353375733,1739805035186,-588.36,0.00013698,2]
[353375734,1739805035196,-500.0,0.00013698,2]
[353375735,1739805035205,-500.0,0.00013698,2]
[353375736,1739805035215,-500.0,0.00013698,2]
[353375737,1739805035224,-1051.5,0.00013698,2]
[353375738,1739805035232,-500.0,0.00013698,2]
[353375739,1739805035242,-1077.8,0.00013698,2]
[353375740,1739805035251,-500.0,0.00013698,2]
[353375741,1739805035260,-500.0,0.00013698,2]
[353375742,1739805035270,-500.0,0.00013698,2]
[353375743,1739805035279,-500.0,0.00013698,2]
[353375744,1739805035289,-737.46,0.00013698,2]
[353375745,1739805035298,-500.0,0.00013698,2]
[353375746,1739805035308,-652.42,0.00013698,2]
[353375747,1739805035317,-500.0,0.00013698,2]
[353375748,1739805035326,-500.0,0.00013698,2]
[353375749,1739805035335,-500.0,0.00013698,2]
[353375750,1739805035344,-1014.39,0.00013698,2]
[353375751,1739805035354,-176.80215263,0.00013698,2]
[353375752,1739805035363,-634.99,0.00013698,2]
[353375753,1739805035372,-500.0,0.00013698,2]
[353375754,1739805035381,-500.0,0.00013698,2]
[353375755,1739805035390,-500.0,0.00013698,2]
[353375756,1739805035399,-500.0,0.00013698,2]
[353375757,1739805035408,-529.33,0.00013698,2]
[353375758,1739805035417,-500.0,0.00013698,2]
[353375759,1739805035426,-500.0,0.00013698,2]
[353375760,1739805035435,-500.0,0.00013698,2]
[353375761,1739805035445,-500.0,0.00013698,2]
[353375762,1739805035454,-500.0,0.00013698,2]
[353375763,1739805035463,-500.0,0.00013698,2]
[353375764,1739805035472,-500.0,0.00013698,2]
[353375765,1739805035481,-500.0,0.00013698,2]
[353375766,1739805035491,-500.0,0.00013698,2]
[353375767,1739805035500,-500.0,0.00013698,2]
[353375768,1739805035509,-500.0,0.00013698,2]
[353375769,1739805035521,-500.0,0.00013698,2]
[353375770,1739805035530,-500.0,0.00013698,2]
[353375771,1739805035540,-794.14,0.00013698,2]
[353375772,1739805035549,-500.0,0.00013698,2]
[353375773,1739805035558,-500.0,0.00013698,2]
[353375774,1739805035567,-500.0,0.00013698,2]
[353375775,1739805035578,-500.0,0.00013698,2]
[353375776,1739805035587,-757.61,0.00013698,2]
[353375777,1739805035596,-500.0,0.00013698,2]
[353375778,1739805035605,-1937.68,0.00013698,2]
[353375779,1739805035615,-1333.26,0.00013698,2]
[353375780,1739805035624,-609.53,0.00013698,2]
[353375781,1739805035633,-500.0,0.00013698,2]
[353375782,1739805035642,-500.0,0.00013698,2]
[353375783,1739805035651,-500.0,0.00013698,2]
[353375784,1739805035661,-500.0,0.00013698,2]
[353375785,1739805035671,-500.0,0.00013698,2]
[353375786,1739805035680,-500.0,0.00013698,2]
[353375787,1739805035690,-500.0,0.00013698,2]
[353375788,1739805035700,-1091.73,0.00013698,2]
[353375789,1739805035710,-500.0,0.00013698,2]
[353375790,1739805035720,-545.89,0.00013698,2]
[353375791,1739805035730,-1399.84,0.00013698,2]
[353375792,1739805035738,-500.0,0.00013698,2]
[353375793,1739805035747,-1177.83,0.00013698,2]
[353375794,1739805035757,-1623.33,0.00013698,2]
[353375795,1739805035766,-1279.73,0.00013698,2]
[353375796,1739805035778,-500.0,0.00013698,2]
[353375797,1739805035787,-500.0,0.00013698,2]
[353375798,1739805035796,-546.41,0.00013698,2]
[353375799,1739805035805,-500.0,0.00013698,2]
[353375800,1739805035815,-500.0,0.00013698,2]
[353375801,1739805035824,-1683.07,0.00013698,2]
[353375802,1739805035833,-802.31,0.00013698,2]
[353375803,1739805035842,-500.0,0.00013698,2]
[353375804,1739805035851,-500.0,0.00013698,2]
[353375805,1739805035861,-522.49,0.00013698,2]
[353375806,1739805035870,-454.47672694,0.00013698,2]
[353375807,1739805035880,-500.0,0.00013698,2]
[353375808,1739805035889,-1045.27,0.00013698,2]
[353375809,1739805035900,-500.0,0.00013698,2]
[353375810,1739805035909,-501.65,0.00013698,2]
[353375811,1739805035919,-500.0,0.00013698,2]
[353375812,1739805035929,-500.0,0.00013698,2]
[353375813,1739805035938,-805.86,0.00013698,2]
[353375814,1739805035947,-500.0,0.00013698,2]
[353375815,1739805035957,-1472.99,0.00013698,2]
[353375816,1739805035965,-798.1,0.00013698,2]
[353375817,1739805035974,-500.0,0.00013698,2]
[353375818,1739805035983,-500.0,0.00013698,2]
[353375819,1739805035992,-500.0,0.00013698,2]
[353375820,1739805036001,-548.26,0.00013698,2]
[353375821,1739805036010,-4454.85,0.00013698,2]
[353375822,1739805036019,-646.12,0.00013698,2]
[353375823,1739805036029,-1236.48,0.00013698,2]
[353375824,1739805036038,-500.0,0.00013698,2]
[353375825,1739805036047,-964.08,0.00013698,2]
[353375826,1739805036057,-1409.98,0.00013698,2]
[353375827,1739805036066,-820.34,0.00013698,2]
[353375828,1739805036079,-1648.65,0.00013698,2]
[353375829,1739805036088,-1043.52,0.00013698,2]
[353375830,1739805036097,-500.0,0.00013698,2]
[353375831,1739805036106,-500.0,0.00013698,2]
[353375832,1739805036116,-534.35,0.00013698,2]
[353375833,1739805036126,-500.0,0.00013698,2]
[353375834,1739805036135,-1519.27,0.00013698,2]
[353375835,1739805036144,-1448.66,0.00013698,2]
[353375836,1739805036156,-500.0,0.00013698,2]
[353375837,1739805036166,-1462.44,0.00013698,2]
[353375838,1739805036176,-758.36,0.00013698,2]
[353375839,1739805036185,-1128.28,0.00013698,2]
[353375840,1739805036194,-1445.6,0.00013698,2]
[353375841,1739805036204,-2437.63,0.00013698,2]
[353375842,1739805036213,-502.4275607,0.00013698,2]
[353375843,1739805036222,-2129.74,0.00013698,2]
[353375844,1739805036232,-3275.58,0.00013698,2]
[353375845,1739805036242,-500.0,0.00013698,2]
[353375846,1739805036252,-1077.71,0.00013698,2]
[353375847,1739805036263,-621.95,0.00013698,2]
[353375848,1739805036275,-500.0,0.00013698,2]
[353375849,1739805036286,-1794.24,0.00013698,2]
[353375850,1739805036296,-1093.3,0.00013698,2]
[353375851,1739805036307,-738.23,0.00013698,2]
[353375852,1739805036317,-1743.21,0.00013698,2]
[353375853,1739805036329,-1374.72,0.00013698,2]
[353375854,1739805036338,-1061.4,0.00013698,2]
[353375855,1739805036349,-830.88,0.00013698,2]
[353375856,1739805036359,-308.4121,0.00013698,2]
[353375857,1739805036368,-2011.13,0.00013698,2]
[353375858,1739805036377,-1300.0,0.00013698,2]
[353375859,1739805036387,-2664.31,0.00013698,2]
[353375860,1739805036396,-500.0,0.00013698,2]
[353375861,1739805036405,-1423.42,0.00013698,2]
[353375862,1739805036414,-500.0,0.00013698,2]
[353375863,1739805036423,-1871.26,0.00013698,2]
[353375864,1739805036433,-1215.44,0.00013698,2]
[353375865,1739805036443,-5181.36,0.00013698,2]
[353375866,1739805036452,-1830.27,0.00013698,2]
[353375867,1739805036470,-500.0,0.00013698,2]
[353375868,1739805036481,-3191.27,0.00013698,2]
[353375869,1739805036491,-1509.59,0.00013698,2]
[353375870,1739805036501,-2160.65,0.00013698,2]
[353375871,1739805036510,-1252.95,0.00013698,2]
[353375872,1739805036521,-1062.7,0.00013698,2]
[353375873,1739805036531,-500.0,0.00013698,2]
[353375874,1739805036540,-1948.26,0.00013698,2]
[353375875,1739805036550,-500.0,0.00013698,2]
[353375876,1739805036560,-1798.77,0.00013698,2]
[353375877,1739805036570,-2453.04,0.00013698,2]
[353375878,1739805036579,-2113.02,0.00013698,2]
[353375879,1739805036589,-1237.53,0.00013698,2]
[353375880,1739805036599,-7820.97,0.00013698,2]
[353375881,1739805036608,-500.0,0.00013698,2]
[353375882,1739805036618,-2794.55,0.00013698,2]
[353375883,1739805036628,-1400.69,0.00013698,2]
[353375884,1739805036638,-766.82,0.00013698,2]
[353375885,1739805036647,-500.0,0.00013698,2]
[353375886,1739805036657,-1160.18,0.00013698,2]
[353375887,1739805036668,-1291.67,0.00013698,2]
[353375888,1739805036677,-500.0,0.00013698,2]
[353375889,1739805036686,-1867.91,0.00013698,2]
[353375890,1739805036696,-642.82,0.00013698,2]
[353375891,1739805036706,-238.51337416,0.00013698,2]
[353375892,1739805036715,-1829.95,0.00013698,2]
[353375893,1739805036725,-500.0,0.00013698,2]
[353375894,1739805036735,-500.0,0.00013698,2]
[353375895,1739805036745,-2383.29,0.00013698,2]
[353375896,1739805036754,-1654.71,0.00013698,2]
[353375897,1739805036765,-500.0,0.00013698,2]
[353375898,1739805036774,-1718.2,0.00013698,2]
[353375899,1739805036783,-2057.74,0.00013698,2]
[353375900,1739805036792,-1599.6,0.00013698,2]
[353375901,1739805036801,-2564.93,0.00013698,2]
[353375902,1739805036811,-505.44,0.00013698,2]
[353375903,1739805036821,-500.0,0.00013698,2]
[353375904,1739805036831,-547.57,0.00013698,2]
[353375905,1739805036840,-500.0,0.00013698,2]
[353375906,1739805036850,-500.0,0.00013698,2]
[353375907,1739805036859,-571.68,0.00013698,2]
[353375908,1739805036869,-500.0,0.00013698,2]
[353375909,1739805036878,-2172.92,0.00013698,2]
[353375910,1739805036888,-1307.12,0.00013698,2]
[353375911,1739805036898,-1897.78,0.00013698,2]
[353375912,1739805036908,-2283.69,0.00013698,2]
[353375913,1739805036917,-5309.32,0.00013698,2]
[353375914,1739805036927,-574.21,0.00013698,2]
[353375915,1739805036936,-825.24,0.00013698,2]
[353375916,1739805036946,-1172.99,0.00013698,2]
[353375917,1739805036955,-1127.44,0.00013698,2]
[353375918,1739805036965,-750.29,0.00013698,2]
[353375919,1739805036974,-2962.78,0.00013698,2]
[353375920,1739805036984,-500.0,0.00013698,2]
[353375921,1739805036994,-196.52114329,0.00013698,2]
[353375922,1739805037012,-345.17885671,0.00013698,2]
[353375923,1739805037024,-2037.13,0.00013698,2]
[353375924,1739805037033,-500.0,0.00013698,2]
[353375925,1739805037042,-500.0,0.00013698,2]
[353375926,1739805037051,-757.82,0.00013698,2]
[353375927,1739805037061,-1054.15,0.00013698,2]
[353375928,1739805037071,-500.0,0.00013698,2]
[353375929,1739805037084,-500.0,0.00013698,2]
[353375930,1739805037094,-1817.84,0.00013698,2]
[353375931,1739805037103,-500.0,0.00013698,2]
[353375932,1739805037112,-500.0,0.00013698,2]
[353375933,1739805037122,-1826.14,0.00013698,2]
[353375934,1739805037131,-500.0,0.00013698,2]
[353375935,1739805037141,-500.0,0.00013698,2]
[353375936,1739805037151,-1232.96,0.00013698,2]
[353375937,1739805037160,-500.0,0.00013698,2]
[353375938,1739805037170,-1184.86,0.00013698,2]
[353375939,1739805037179,-855.85,0.00013698,2]
[353375940,1739805037188,-500.0,0.00013698,2]
[353375941,1739805037197,-1940.95,0.00013698,2]
[353375942,1739805037207,-2864.48,0.00013698,2]
[353375943,1739805037216,-1724.76,0.00013698,2]
[353375944,1739805037226,-1494.49,0.00013698,2]
[353375945,1739805037235,-811.55,0.00013698,2]
[353375946,1739805037245,-1137.99,0.00013698,2]
[353375947,1739805037254,-1844.21,0.00013698,2]
[353375948,1739805037263,-500.0,0.00013698,2]
[353375949,1739805037274,-500.0,0.00013698,2]
[353375951,1739805037284,-1706.29,0.00013698,2]
[353375953,1739805037293,-3432.63,0.00013698,2]
[353375954,1739805037303,-500.0,0.00013698,2]
[353375955,1739805037312,-888.54,0.00013698,2]
[353375956,1739805037322,-1830.20480905,0.00013698,2]
[353375957,1739805037333,-590.59698803,0.00013698,2]
[353375958,1739805037365,-394.72820292,0.00013698,2]
[353375959,1739805037377,-500.0,0.00013698,2]
[353375960,1739805037386,-113.99352898,0.00013698,2]
[353375961,1739805037398,-299.0375512,0.00013698,2]
[353375962,1739805037408,-1101.21,0.00013698,2]
[353375963,1739805037418,-220.2022727,0.00013698,2]
[353376048,1739805038568,-370.9651,8.851e-05,2]
[353376050,1739805038577,-509.85592011,0.00013698,2]
[353376053,1739805038595,-498.54180719,0.00013698,2]
[353376055,1739805038604,-1491.25,0.00013698,2]
[353376057,1739805038613,-90.12189133,0.00013698,2]
[353376062,1739805038653,-2046.13810867,0.00013698,2]
[353376064,1739805038663,-500.0,0.00013698,2]
[353376066,1739805038672,-499.99535576,0.00013698,2]
[353376068,1739805038682,-500.0,0.00013698,2]
[353376070,1739805038691,-1419.49,0.00013698,2]
[353376072,1739805038701,-22.31949557,0.00013698,2]
[353376074,1739805038712,-1623.97050443,0.00013698,2]
[353376076,1739805038721,-496.16340578,0.00013698,2]
[353376170,1739805039767,-3.83659422,0.00013698,2]
[353376172,1739805039779,-286.98040578,0.00013698,2]
[353376175,1739805039792,-1841.37959422,0.00013698,2]
[353376177,1739805039801,-1256.22,0.00013698,2]
[353376179,1739805039811,-500.0,0.00013698,2]
[353376181,1739805039820,-536.47,0.00013698,2]
[353376183,1739805039829,-1129.3,0.00013698,2]
[353376185,1739805039839,-500.0,0.00013698,2]
[353376187,1739805039849,-311.92379841,0.00013698,2]
[353376192,1739805039895,-1023.29620159,0.00013698,2]
[353376195,1739805039905,-1539.22,0.00013698,2]
[353376197,1739805039915,-1540.8,0.00013698,2]
[353376198,1739805039924,-500.0,0.00013698,2]
[353376200,1739805039934,-500.0,0.00013698,2]
[353376202,1739805039944,-1322.1,0.00013698,2]
[353376204,1739805039953,-1773.52,0.00013698,2]
[353376207,1739805039964,-824.13,0.00013698,2]
[353376208,1739805039974,-500.0,0.00013698,2]
[353376211,1739805039983,-500.0,0.00013698,2]
[353376212,1739805039993,-2007.28,0.00013698,2]
[353376214,1739805040002,-1287.9,0.00013698,2]
[353376216,1739805040011,-1229.71,0.00013698,2]
[353376218,1739805040021,-1435.86,0.00013698,2]
[353376220,1739805040030,-500.0,0.00013698,2]
[353376222,1739805040040,-1602.18,0.00013698,2]
[353376224,1739805040051,-485.36324325,0.00013698,2]
[353376227,1739805040060,-2517.12,0.00013698,2]
[353376229,1739805040069,-691.66,0.00013698,2]
[353376231,1739805040082,-2281.2,0.00013698,2]
[353376233,1739805040092,-500.0,0.00013698,2]
[353376235,1739805040102,-500.0,0.00013698,2]
[353376236,1739805040111,-500.0,0.00013698,2]
[353376238,1739805040123,-1355.41,0.00013698,2]
[353376240,1739805040133,-634.35,0.00013698,2]
[353376243,1739805040143,-1536.08,0.00013698,2]
[353376245,1739805040155,-500.0,0.00013698,2]
[353376247,1739805040165,-590.214,0.00013699,2]
[353376249,1739805040175,-8246.25428821,0.000137,2]
[353376251,1739805040184,-652.81,0.000137,2]
[353376253,1739805040193,-150.0,0.00013772,2]
[353376255,1739805040203,-500.0,0.00013779,2]
[353376257,1739805040213,-500.0,0.00013779,2]
[353376259,1739805040223,-500.0,0.00013779,2]
[353376261,1739805040232,-314.91599064,0.00013779,2]
[353376263,1739805040242,-798.1,0.00013779,2]
[353376265,1739805040251,-798.1,0.00013779,2]
[353376267,1739805040261,-866.803779,0.0001378,2]
[353376269,1739805040270,-927.692755,0.0001378,2]
[353376271,1739805040281,-756.82,0.0001378,2]
[353376273,1739805040292,-197.80741788,0.0001378,2]
[353376275,1739805040301,-500.0,0.0001378,2]
[353376277,1739805040310,-500.0,0.0001378,2]
[353376279,1739805040319,-500.0,0.0001378,2]
[353376280,1739805040329,-500.0,0.0001378,2]
[353376283,1739805040339,-500.0,0.0001378,2]
[353376284,1739805040348,-556.16,0.0001378,2]
[353376286,1739805040358,-500.0,0.0001378,2]
[353376288,1739805040367,-500.0,0.0001378,2]
[353376290,1739805040376,-602.62,0.0001378,2]
[353376292,1739805040385,-500.0,0.0001378,2]
[353376294,1739805040395,-500.0,0.0001378,2]
[353376296,1739805040405,-200.0,0.0001378,2]
[353376298,1739805040414,-500.0,0.0001378,2]
[353376300,1739805040423,-599.64,0.0001378,2]
[353376302,1739805040433,-500.0,0.0001378,2]
[353376304,1739805040442,-500.0,0.0001378,2]
[353376306,1739805040452,-622.96,0.0001378,2]
[353376308,1739805040461,-500.0,0.0001378,2]
[353376310,1739805040471,-747.59,0.0001378,2]
[353376312,1739805040480,-487.49658172,0.0001378,2]
[353376314,1739805040490,-1025.6,0.0001378,2]
[353376316,1739805040499,-500.0,0.0001378,2]
[353376318,1739805040508,-633.26,0.0001378,2]
[353376320,1739805040518,-500.0,0.0001378,2]
[353376322,1739805040530,-698.37,0.0001378,2]
[353376324,1739805040539,-1219.51,0.0001378,2]
[353376326,1739805040549,-500.0,0.0001378,2]
[353376328,1739805040557,-500.0,0.0001378,2]
[353376330,1739805040567,-559.86,0.0001378,2]
[353376332,1739805040576,-638.33,0.0001378,2]
[353376334,1739805040585,-513.59,0.0001378,2]
[353376336,1739805040594,-500.0,0.0001378,2]
[353376338,1739805040604,-1073.92,0.0001378,2]
[353376340,1739805040613,-511.2,0.0001378,2]
[353376342,1739805040623,-500.0,0.0001378,2]
[353376344,1739805040632,-862.84,0.0001378,2]
[353376346,1739805040642,-900.31,0.0001378,2]
[353376348,1739805040651,-565.33888298,0.0001378,2]
[353376350,1739805040661,-559.29,0.0001378,2]
[353376352,1739805040670,-156.3570863,0.0001378,2]
[353376354,1739805040681,-500.0,0.0001378,2]
[353376356,1739805040691,-500.0,0.0001378,2]
[353376358,1739805040700,-585.88,0.0001378,2]
[353376360,1739805040710,-500.0,0.0001378,2]
[353376362,1739805040719,-665.37,0.0001378,2]
[353376364,1739805040728,-500.0,0.0001378,2]
[353376366,1739805040738,-595.92,0.0001378,2]
[353376368,1739805040747,-500.0,0.0001378,2]
[353376370,1739805040757,-517.94705865,0.0001378,2]
[353376372,1739805040766,-994.03,0.0001378,2]
[353376374,1739805040777,-500.0,0.0001378,2]
[353376376,1739805040787,-500.0,0.0001378,2]
[353376378,1739805040796,-868.99,0.0001378,2]
[353376380,1739805040806,-986.39,0.0001378,2]
[353376382,1739805040816,-500.0,0.0001378,2]
[353376384,1739805040824,-500.0,0.0001378,2]
[353376386,1739805040833,-500.0,0.0001378,2]
[353376388,1739805040843,-540.73,0.0001378,2]
[353376390,1739805040852,-601.87,0.0001378,2]
[353376392,1739805040862,-524.79,0.0001378,2]
[353376394,1739805040871,-500.0,0.0001378,2]
[353376396,1739805040881,-500.0,0.0001378,2]
[353376398,1739805040890,-500.0,0.0001378,2]
[353376400,1739805040901,-964.47,0.0001378,2]
[353376402,1739805040910,-500.0,0.0001378,2]
[353376404,1739805040921,-967.98,0.0001378,2]
[353376406,1739805040930,-550.56,0.0001378,2]
[353376408,1739805040940,-687.27,0.0001378,2]
[353376410,1739805040949,-500.0,0.0001378,2]
[353376412,1739805040958,-715.53,0.0001378,2]
[353376414,1739805040967,-680.5,0.0001378,2]
[353376416,1739805040976,-734.8,0.0001378,2]
[353376418,1739805040986,-500.0,0.0001378,2]
[353376420,1739805040995,-513.87,0.0001378,2]
[353376422,1739805041005,-905.52,0.0001378,2]
[353376424,1739805041014,-500.0,0.0001378,2]
[353376426,1739805041025,-912.14,0.0001378,2]
[353376428,1739805041034,-500.0,0.0001378,2]
[353376430,1739805041044,-500.0,0.0001378,2]
[353376432,1739805041054,-500.0,0.0001378,2]
[353376434,1739805041063,-500.0,0.0001378,2]
[353376436,1739805041073,-642.15,0.0001378,2]
[353376438,1739805041085,-500.0,0.0001378,2]
[353376440,1739805041095,-500.0,0.0001378,2]
[353376442,1739805041104,-986.81,0.0001378,2]
[353376444,1739805041114,-500.0,0.0001378,2]
[353376446,1739805041124,-500.0,0.0001378,2]
[353376448,1739805041134,-225.54271478,0.0001378,2]
[353376450,1739805041150,-274.45728522,0.0001378,2]
[353376453,1739805041162,-562.57,0.0001378,2]
[353376455,1739805041171,-500.0,0.0001378,2]
[353376457,1739805041180,-500.0,0.0001378,2]
[353376458,1739805041190,-500.0,0.0001378,2]
[353376461,1739805041200,-500.0,0.0001378,2]
[353376462,1739805041210,-811.19,0.0001378,2]
[353376464,1739805041219,-500.0,0.0001378,2]
[353376466,1739805041229,-558.06,0.0001378,2]
[353376468,1739805041239,-500.0,0.0001378,2]
[353376470,1739805041248,-500.0,0.0001378,2]
[353376473,1739805041258,-650.17,0.0001378,2]
[353376475,1739805041267,-605.22,0.0001378,2]
[353376476,1739805041279,-661.17,0.0001378,2]
[353376478,1739805041288,-740.6,0.0001378,2]
[353376480,1739805041297,-841.29,0.0001378,2]
[353376482,1739805041307,-849.8,0.0001378,2]
[353376484,1739805041315,-795.64,0.0001378,2]
[353376486,1739805041325,-500.0,0.0001378,2]
[353376488,1739805041334,-500.0,0.0001378,2]
[353376490,1739805041343,-500.0,0.0001378,2]
[353376492,1739805041352,-500.0,0.0001378,2]
[353376494,1739805041362,-500.0,0.0001378,2]
[353376496,1739805041371,-1119.24,0.0001378,2]
[353376498,1739805041380,-653.18,0.0001378,2]
[353376500,1739805041390,-992.98,0.0001378,2]